[Event "Titled Tuesday Blitz May 23 Late 2023"]
[White "Vovk, Orest"]
[Black "Matute Escobar, Roxanny"]
[WhiteFideId "14113490"]
[BlackFideId "3926028"]
[WhiteElo "2215"]
[BlackElo "1844"]
[Result "0-1"]
[Round "05"]
[TimeControl "180+2"]
[Date "2023.05.23"]
[WhiteClock "0:00:00"]
[BlackClock "0:00:15"]

1. h4 {[%clk 0:02:55]}  Nf6 {[%clk 0:02:58]} 2. h5 {[%clk 0:02:52]}  d5 {[%clk 0:02:58]} 3. c4 {[%clk 0:02:41]}  e5 {[%clk 0:02:53]} 4. cxd5 {[%clk 0:02:38]}  Nxd5 {[%clk 0:02:54]} 5. Nc3 {[%clk 0:02:38]}  Be6 {[%clk 0:02:48]} 6. d3 {[%clk 0:02:34]}  Nc6 {[%clk 0:02:42]} 7. Nf3 {[%clk 0:02:33]}  Bc5 {[%clk 0:02:35]} 8. h6 {[%clk 0:02:24]}  g6 {[%clk 0:02:28]} 9. Ng5 {[%clk 0:02:10]}  Qf6 {[%clk 0:01:56]} 10. Nce4 {[%clk 0:02:03]}  Bb4+ {[%clk 0:01:51]} 11. Bd2 {[%clk 0:02:02]}  Qe7 {[%clk 0:01:38]} 12. Nxe6 {[%clk 0:02:00]}  Qxe6 {[%clk 0:01:35]} 13. a3 {[%clk 0:01:59]}  Bxd2+ {[%clk 0:01:35]} 14. Qxd2 {[%clk 0:01:59]}  O-O-O {[%clk 0:01:34]} 15. g3 {[%clk 0:01:53]}  Nd4 {[%clk 0:01:32]} 16. Qa5 {[%clk 0:01:18]}  Kb8 {[%clk 0:01:11]} 17. Qa4 {[%clk 0:01:02]}  f5 {[%clk 0:00:51]} 18. Nc3 {[%clk 0:00:54]}  Qb6 {[%clk 0:00:51]} 19. Nd1 {[%clk 0:00:43]}  e4 {[%clk 0:00:48]} 20. dxe4 {[%clk 0:00:37]}  fxe4 {[%clk 0:00:48]} 21. Bg2 {[%clk 0:00:35]}  Rhe8 {[%clk 0:00:47]} 22. e3 {[%clk 0:00:31]}  Nb3 {[%clk 0:00:46]} 23. Rb1 {[%clk 0:00:28]}  Nc5 {[%clk 0:00:43]} 24. Qc2 {[%clk 0:00:19]}  Nd3+ {[%clk 0:00:43]} 25. Kf1 {[%clk 0:00:19]}  Nf6 {[%clk 0:00:37]} 26. Kg1 {[%clk 0:00:13]}  Rf8 {[%clk 0:00:35]} 27. Nc3 {[%clk 0:00:09]}  Ng4 {[%clk 0:00:32]} 28. Nxe4 {[%clk 0:00:07]}  Ndxf2 {[%clk 0:00:32]} 29. Re1 {[%clk 0:00:04]}  Nd3 {[%clk 0:00:29]} 30. Rd1 {[%clk 0:00:02]}  Qxe3+ {[%clk 0:00:28]} 31. Nf2 {[%clk 0:00:02]}  Rxf2 {[%clk 0:00:23]} 32. Rxd3 {[%clk 0:00:02]}  Rxc2+ {[%clk 0:00:17]} 33. Rxe3 {[%clk 0:00:00]}  Rc1+ {[%clk 0:00:15]} 0-1


[Site "https://www.chess.com"]

[Event "Titled Tuesday Blitz May 23 Late 2023"]
[White "Toncheva, Nadya"]
[Black "kiwibobo"]
[WhiteFideId "2924056"]
[WhiteElo "2101"]
[BlackElo "2184"]
[Result "0-1"]
[Round "05"]
[TimeControl "180+2"]
[Date "2023.05.23"]
[WhiteClock "0:00:00"]
[BlackClock "0:00:04"]

1. d4 {[%clk 0:03:00]}  Nf6 {[%clk 0:02:58]} 2. c4 {[%clk 0:03:00]}  g6 {[%clk 0:02:55]} 3. Nc3 {[%clk 0:03:01]}  d5 {[%clk 0:02:54]} 4. Qb3 {[%clk 0:02:58]}  dxc4 {[%clk 0:02:52]} 5. Qxc4 {[%clk 0:02:59]}  Bg7 {[%clk 0:02:51]} 6. e4 {[%clk 0:02:59]}  O-O {[%clk 0:02:49]} 7. Bf4 {[%clk 0:02:59]}  Nc6 {[%clk 0:02:47]} 8. d5 {[%clk 0:02:56]}  Na5 {[%clk 0:02:39]} 9. Qxc7 {[%clk 0:02:53]}  Qxc7 {[%clk 0:02:34]} 10. Bxc7 {[%clk 0:02:54]}  b6 {[%clk 0:02:28]} 11. Nf3 {[%clk 0:02:48]}  Bb7 {[%clk 0:02:25]} 12. Bd3 {[%clk 0:02:45]}  Rac8 {[%clk 0:02:25]} 13. Be5 {[%clk 0:02:43]}  Nc4 {[%clk 0:02:23]} 14. Bxc4 {[%clk 0:02:36]}  Rxc4 {[%clk 0:02:24]} 15. Nd2 {[%clk 0:02:32]}  Rcc8 {[%clk 0:02:18]} 16. f4 {[%clk 0:02:18]}  e6 {[%clk 0:02:00]} 17. d6 {[%clk 0:01:58]}  Rfd8 {[%clk 0:01:53]} 18. O-O {[%clk 0:01:56]}  a6 {[%clk 0:01:14]} 19. Rac1 {[%clk 0:01:37]}  Bc6 {[%clk 0:01:08]} 20. Rfd1 {[%clk 0:01:32]}  b5 {[%clk 0:00:58]} 21. Bxf6 {[%clk 0:01:26]}  Bxf6 {[%clk 0:00:57]} 22. e5 {[%clk 0:01:26]}  Bg7 {[%clk 0:00:57]} 23. Nce4 {[%clk 0:01:23]}  f6 {[%clk 0:00:48]} 24. exf6 {[%clk 0:01:18]}  Bh8 {[%clk 0:00:45]} 25. Kf2 {[%clk 0:01:15]}  Kf7 {[%clk 0:00:43]} 26. Ke3 {[%clk 0:01:12]}  Bxf6 {[%clk 0:00:41]} 27. Rc2 {[%clk 0:00:50]}  Bxe4 {[%clk 0:00:17]} 28. Rxc8 {[%clk 0:00:49]}  Rxc8 {[%clk 0:00:18]} 29. Nxe4 {[%clk 0:00:50]}  Bxb2 {[%clk 0:00:17]} 30. d7 {[%clk 0:00:17]}  Rd8 {[%clk 0:00:16]} 31. Nc5 {[%clk 0:00:17]}  Ke7 {[%clk 0:00:12]} 32. Ke4 {[%clk 0:00:14]}  Ba3 {[%clk 0:00:11]} 33. Nxa6 {[%clk 0:00:14]}  Rxd7 {[%clk 0:00:10]} 34. Rb1 {[%clk 0:00:10]}  Rb7 {[%clk 0:00:07]} 35. Nb4 {[%clk 0:00:09]}  Kd6 {[%clk 0:00:05]} 36. Nd3 {[%clk 0:00:09]}  b4 {[%clk 0:00:05]} 37. Ne5 {[%clk 0:00:08]}  Rc7 {[%clk 0:00:05]} 38. Rd1+ {[%clk 0:00:06]}  Ke7 {[%clk 0:00:05]} 39. Rd2 {[%clk 0:00:05]}  Kf6 {[%clk 0:00:02]} 40. g4 {[%clk 0:00:05]}  h6 {[%clk 0:00:02]} 41. h4 {[%clk 0:00:04]}  h5 {[%clk 0:00:02]} 42. g5+ {[%clk 0:00:04]}  Kg7 {[%clk 0:00:02]} 43. Nd7 {[%clk 0:00:04]}  Bc1 {[%clk 0:00:02]} 44. Re2 {[%clk 0:00:03]}  Rc4+ {[%clk 0:00:02]} 45. Ke5 {[%clk 0:00:03]}  Rc3 {[%clk 0:00:02]} 46. Kxe6 {[%clk 0:00:03]}  Rc4 {[%clk 0:00:02]} 47. Nf6 {[%clk 0:00:03]}  Bxf4 {[%clk 0:00:02]} 48. Kd7 {[%clk 0:00:03]}  Rc7+ {[%clk 0:00:02]} 49. Kd8 {[%clk 0:00:04]}  Ra7 {[%clk 0:00:02]} 50. Re8 {[%clk 0:00:04]}  Ra8+ {[%clk 0:00:02]} 51. Kd7 {[%clk 0:00:05]}  Rxe8 {[%clk 0:00:03]} 52. Kxe8 {[%clk 0:00:06]}  Bg3 {[%clk 0:00:03]} 53. Kd7 {[%clk 0:00:06]}  Bxh4 {[%clk 0:00:04]} 54. Ne4 {[%clk 0:00:06]}  Be1 {[%clk 0:00:03]} 55. Ke6 {[%clk 0:00:06]}  h4 {[%clk 0:00:04]} 56. Ke5 {[%clk 0:00:05]}  h3 {[%clk 0:00:04]} 57. Nf6 {[%clk 0:00:00]}  h2 {[%clk 0:00:04]} 0-1


[Site "https://www.chess.com"]

[Event "Titled Tuesday Blitz May 23 Late 2023"]
[White "Weinstein, Joshua Ross"]
[Black "Moral Garcia, Serafin"]
[WhiteFideId "30927714"]
[BlackFideId "2201925"]
[WhiteElo "2322"]
[BlackElo "2274"]
[Result "1-0"]
[Round "05"]
[TimeControl "180+2"]
[Date "2023.05.23"]
[WhiteClock "0:00:37"]
[BlackClock "0:00:36"]

1. e4 {[%clk 0:03:00]}  c5 {[%clk 0:02:59]} 2. Nc3 {[%clk 0:03:01]}  e6 {[%clk 0:02:58]} 3. Bc4 {[%clk 0:03:01]}  Nc6 {[%clk 0:02:43]} 4. d3 {[%clk 0:03:01]}  g6 {[%clk 0:02:42]} 5. f4 {[%clk 0:03:01]}  Bg7 {[%clk 0:02:42]} 6. Nf3 {[%clk 0:03:01]}  Nge7 {[%clk 0:02:43]} 7. Bb3 {[%clk 0:03:01]}  d5 {[%clk 0:02:42]} 8. e5 {[%clk 0:03:01]}  f6 {[%clk 0:02:35]} 9. exf6 {[%clk 0:03:00]}  Bxf6 {[%clk 0:02:36]} 10. O-O {[%clk 0:03:01]}  O-O {[%clk 0:02:36]} 11. Ne2 {[%clk 0:03:00]}  Nf5 {[%clk 0:02:31]} 12. c3 {[%clk 0:02:56]}  Kg7 {[%clk 0:02:26]} 13. Qe1 {[%clk 0:02:56]}  Qd6 {[%clk 0:02:13]} 14. g4 {[%clk 0:02:53]}  c4 {[%clk 0:02:02]} 15. dxc4 {[%clk 0:02:21]}  dxc4 {[%clk 0:02:00]} 16. Bc2 {[%clk 0:02:07]}  Qc5+ {[%clk 0:01:54]} 17. Kh1 {[%clk 0:02:02]}  Ne3 {[%clk 0:01:52]} 18. Qf2 {[%clk 0:01:57]}  Nxc2 {[%clk 0:01:29]} 19. Qxc5 {[%clk 0:01:56]}  Nxa1 {[%clk 0:01:29]} 20. Qxc4 {[%clk 0:01:42]}  Bd7 {[%clk 0:01:27]} 21. Bd2 {[%clk 0:01:34]}  Nc2 {[%clk 0:01:27]} 22. Qd3 {[%clk 0:01:34]}  Rad8 {[%clk 0:01:24]} 23. Qxc2 {[%clk 0:01:34]}  Bc8 {[%clk 0:01:25]} 24. Be3 {[%clk 0:01:31]}  b6 {[%clk 0:01:25]} 25. g5 {[%clk 0:01:23]}  Be7 {[%clk 0:01:25]} 26. Ned4 {[%clk 0:01:23]}  Nxd4 {[%clk 0:01:23]} 27. Nxd4 {[%clk 0:01:21]}  e5 {[%clk 0:01:20]} 28. Qe4 {[%clk 0:01:12]}  Bxg5 {[%clk 0:01:13]} 29. Qxe5+ {[%clk 0:01:05]}  Bf6 {[%clk 0:01:12]} 30. Ne6+ {[%clk 0:00:58]}  Bxe6 {[%clk 0:00:43]} 31. Qxe6 {[%clk 0:00:57]}  Rfe8 {[%clk 0:00:43]} 32. Qh3 {[%clk 0:00:50]}  Rd3 {[%clk 0:00:43]} 33. Re1 {[%clk 0:00:46]}  Be7 {[%clk 0:00:43]} 34. f5 {[%clk 0:00:40]}  Kg8 {[%clk 0:00:38]} 35. fxg6 {[%clk 0:00:39]}  hxg6 {[%clk 0:00:37]} 36. Qe6+ {[%clk 0:00:38]}  Kg7 {[%clk 0:00:36]} 37. Bd4+ {[%clk 0:00:37]} 1-0


[Site "https://www.chess.com"]

[Event "Titled Tuesday Blitz May 23 Late 2023"]
[White "merinasian"]
[Black "Zampronha, Wladimir Camilo"]
[BlackFideId "2103087"]
[WhiteElo "2452"]
[BlackElo "2176"]
[Result "0-1"]
[Round "05"]
[TimeControl "180+2"]
[Date "2023.05.23"]
[WhiteClock "0:00:59"]
[BlackClock "0:01:02"]

1. d4 {[%clk 0:03:00]}  Nf6 {[%clk 0:02:59]} 2. Nf3 {[%clk 0:03:00]}  e6 {[%clk 0:02:59]} 3. g3 {[%clk 0:03:01]}  d5 {[%clk 0:02:58]} 4. Bg2 {[%clk 0:03:01]}  Be7 {[%clk 0:02:58]} 5. O-O {[%clk 0:03:01]}  O-O {[%clk 0:02:58]} 6. c4 {[%clk 0:03:01]}  dxc4 {[%clk 0:02:57]} 7. a4 {[%clk 0:02:59]}  Bd7 {[%clk 0:02:43]} 8. Qc2 {[%clk 0:02:58]}  Bc6 {[%clk 0:02:42]} 9. Qxc4 {[%clk 0:02:57]}  Bd5 {[%clk 0:02:42]} 10. Qd3 {[%clk 0:02:51]}  Be4 {[%clk 0:02:41]} 11. Qd1 {[%clk 0:02:49]}  Nc6 {[%clk 0:02:40]} 12. Nc3 {[%clk 0:02:49]}  Bxf3 {[%clk 0:02:35]} 13. Bxf3 {[%clk 0:02:48]}  Qxd4 {[%clk 0:02:28]} 14. Qxd4 {[%clk 0:02:21]}  Nxd4 {[%clk 0:02:27]} 15. Bxb7 {[%clk 0:02:22]}  Rab8 {[%clk 0:02:27]} 16. Bg2 {[%clk 0:02:19]}  Bb4 {[%clk 0:02:20]} 17. e3 {[%clk 0:02:09]}  Bxc3 {[%clk 0:02:20]} 18. bxc3 {[%clk 0:02:09]}  Ne2+ {[%clk 0:02:20]} 19. Kh1 {[%clk 0:02:09]}  Nxc3 {[%clk 0:02:19]} 20. Bd2 {[%clk 0:02:08]}  Nce4 {[%clk 0:02:18]} 21. Ba5 {[%clk 0:02:03]}  Rfc8 {[%clk 0:02:09]} 22. f3 {[%clk 0:01:50]}  Nd6 {[%clk 0:02:05]} 23. e4 {[%clk 0:01:49]}  Nc4 {[%clk 0:02:03]} 24. Bc3 {[%clk 0:01:48]}  Rb3 {[%clk 0:02:00]} 25. Bd4 {[%clk 0:01:48]}  c5 {[%clk 0:01:57]} 26. Bg1 {[%clk 0:01:32]}  Nd2 {[%clk 0:01:55]} 27. Rfc1 {[%clk 0:01:26]}  c4 {[%clk 0:01:36]} 28. Bxa7 {[%clk 0:01:24]}  Rb7 {[%clk 0:01:32]} 29. Bd4 {[%clk 0:01:21]}  Nb3 {[%clk 0:01:31]} 30. Bxf6 {[%clk 0:01:17]}  gxf6 {[%clk 0:01:12]} 31. Rab1 {[%clk 0:01:12]}  Nxc1 {[%clk 0:01:11]} 32. Rxb7 {[%clk 0:01:12]}  c3 {[%clk 0:01:02]} 33. Rb1 {[%clk 0:00:59]} 0-1


[Site "https://www.chess.com"]

[Event "Titled Tuesday Blitz May 23 Late 2023"]
[White "Luxama, Jacques Muller"]
[Black "Arencibia Monduy, Antonio"]
[WhiteFideId "11900113"]
[BlackFideId "3507939"]
[WhiteElo "1931"]
[BlackElo "2404"]
[Result "0-1"]
[Round "05"]
[TimeControl "180+2"]
[Date "2023.05.23"]
[WhiteClock "0:01:15"]
[BlackClock "0:00:12"]

1. e4 {[%clk 0:03:00]}  e6 {[%clk 0:02:58]} 2. d4 {[%clk 0:02:59]}  d5 {[%clk 0:02:58]} 3. Nc3 {[%clk 0:02:59]}  dxe4 {[%clk 0:02:58]} 4. Nxe4 {[%clk 0:02:58]}  Nd7 {[%clk 0:02:58]} 5. Nf3 {[%clk 0:02:58]}  Ngf6 {[%clk 0:02:59]} 6. Bd3 {[%clk 0:02:59]}  Be7 {[%clk 0:02:59]} 7. O-O {[%clk 0:02:57]}  b6 {[%clk 0:02:55]} 8. c3 {[%clk 0:02:57]}  Bb7 {[%clk 0:02:56]} 9. Nxf6+ {[%clk 0:02:55]}  Nxf6 {[%clk 0:02:55]} 10. Bb5+ {[%clk 0:02:54]}  c6 {[%clk 0:02:56]} 11. Bd3 {[%clk 0:02:53]}  O-O {[%clk 0:02:56]} 12. Ne5 {[%clk 0:02:53]}  c5 {[%clk 0:02:56]} 13. Be3 {[%clk 0:02:51]}  cxd4 {[%clk 0:02:56]} 14. Bxd4 {[%clk 0:02:51]}  Qc7 {[%clk 0:02:56]} 15. Qe2 {[%clk 0:02:49]}  Rad8 {[%clk 0:02:53]} 16. f4 {[%clk 0:02:47]}  Bc5 {[%clk 0:02:49]} 17. Bxc5 {[%clk 0:02:46]}  Qxc5+ {[%clk 0:02:48]} 18. Kh1 {[%clk 0:02:46]}  Nd5 {[%clk 0:02:06]} 19. Be4 {[%clk 0:02:40]}  Ba8 {[%clk 0:02:01]} 20. c4 {[%clk 0:02:36]}  Ne3 {[%clk 0:01:32]} 21. Rfe1 {[%clk 0:02:08]}  Bxe4 {[%clk 0:01:20]} 22. Qxe3 {[%clk 0:02:07]}  Qxe3 {[%clk 0:01:12]} 23. Rxe3 {[%clk 0:02:08]}  Bb7 {[%clk 0:01:05]} 24. Re2 {[%clk 0:02:07]}  Rd4 {[%clk 0:01:02]} 25. b3 {[%clk 0:01:52]}  Rfd8 {[%clk 0:00:59]} 26. Rf1 {[%clk 0:01:49]}  Rxf4 {[%clk 0:00:51]} 27. Kg1 {[%clk 0:01:46]}  Rxf1+ {[%clk 0:00:45]} 28. Kxf1 {[%clk 0:01:47]}  f6 {[%clk 0:00:44]} 29. Nf3 {[%clk 0:01:46]}  Kf7 {[%clk 0:00:42]} 30. Kf2 {[%clk 0:01:44]}  e5 {[%clk 0:00:42]} 31. Ne1 {[%clk 0:01:44]}  Ke6 {[%clk 0:00:39]} 32. Ke3 {[%clk 0:01:42]}  f5 {[%clk 0:00:38]} 33. g3 {[%clk 0:01:41]}  g5 {[%clk 0:00:37]} 34. Nc2 {[%clk 0:01:39]}  f4+ {[%clk 0:00:37]} 35. Kf2 {[%clk 0:01:38]}  Kf5 {[%clk 0:00:34]} 36. gxf4 {[%clk 0:01:33]}  gxf4 {[%clk 0:00:35]} 37. Nb4 {[%clk 0:01:32]}  e4 {[%clk 0:00:31]} 38. Rb2 {[%clk 0:01:29]}  e3+ {[%clk 0:00:31]} 39. Ke2 {[%clk 0:01:28]}  Ke4 {[%clk 0:00:26]} 40. Nc2 {[%clk 0:01:26]}  f3+ {[%clk 0:00:26]} 41. Ke1 {[%clk 0:01:25]}  Rd2 {[%clk 0:00:20]} 42. c5 {[%clk 0:01:20]}  f2+ {[%clk 0:00:15]} 43. Kf1 {[%clk 0:01:19]}  Ba6+ {[%clk 0:00:15]} 44. Kg2 {[%clk 0:01:17]}  f1=Q+ {[%clk 0:00:16]} 45. Kg3 {[%clk 0:01:17]}  Qf4+ {[%clk 0:00:12]} 46. Kh3 {[%clk 0:01:15]}  Rxh2# {[%clk 0:00:12]} 0-1


[Site "https://www.chess.com"]

[Event "Titled Tuesday Blitz May 23 Late 2023"]
[White "Romero Ruscalleda, Josep"]
[Black "Vaglio Munoz, Jaime"]
[WhiteFideId "2231859"]
[BlackFideId "6500145"]
[WhiteElo "2183"]
[BlackElo "2199"]
[Result "1/2-1/2"]
[Round "05"]
[TimeControl "180+2"]
[Date "2023.05.23"]
[WhiteClock "0:00:10"]
[BlackClock "0:00:12"]

1. e4 {[%clk 0:03:00]}  c5 {[%clk 0:02:55]} 2. c3 {[%clk 0:03:00]}  Qa5 {[%clk 0:02:54]} 3. Nf3 {[%clk 0:02:59]}  a6 {[%clk 0:02:53]} 4. Bc4 {[%clk 0:02:53]}  e6 {[%clk 0:02:52]} 5. O-O {[%clk 0:02:49]}  b5 {[%clk 0:02:52]} 6. Be2 {[%clk 0:02:47]}  Bb7 {[%clk 0:02:52]} 7. d3 {[%clk 0:02:47]}  Nf6 {[%clk 0:02:51]} 8. Re1 {[%clk 0:02:46]}  d6 {[%clk 0:02:51]} 9. Nbd2 {[%clk 0:02:40]}  Be7 {[%clk 0:02:50]} 10. Nf1 {[%clk 0:02:40]}  O-O {[%clk 0:02:48]} 11. Ng3 {[%clk 0:02:39]}  Nc6 {[%clk 0:02:45]} 12. d4 {[%clk 0:02:38]}  Rfd8 {[%clk 0:02:35]} 13. dxc5 {[%clk 0:02:23]}  dxc5 {[%clk 0:02:34]} 14. Qc2 {[%clk 0:02:23]}  c4 {[%clk 0:02:19]} 15. Be3 {[%clk 0:02:16]}  Qc7 {[%clk 0:02:17]} 16. a4 {[%clk 0:02:10]}  Ng4 {[%clk 0:02:15]} 17. Bg5 {[%clk 0:02:01]}  h6 {[%clk 0:02:07]} 18. Bxe7 {[%clk 0:02:00]}  Qxe7 {[%clk 0:02:06]} 19. h3 {[%clk 0:01:52]}  Nge5 {[%clk 0:02:03]} 20. Nxe5 {[%clk 0:01:51]}  Nxe5 {[%clk 0:02:04]} 21. axb5 {[%clk 0:01:49]}  axb5 {[%clk 0:02:04]} 22. Rxa8 {[%clk 0:01:48]}  Rxa8 {[%clk 0:01:56]} 23. f4 {[%clk 0:01:48]}  Ng6 {[%clk 0:01:54]} 24. Rf1 {[%clk 0:01:38]}  Qc5+ {[%clk 0:01:51]} 25. Kh2 {[%clk 0:01:36]}  Nh4 {[%clk 0:01:47]} 26. f5 {[%clk 0:01:20]}  Qd6 {[%clk 0:01:37]} 27. fxe6 {[%clk 0:01:15]}  Qxe6 {[%clk 0:01:35]} 28. Bg4 {[%clk 0:01:09]}  Qe5 {[%clk 0:01:34]} 29. Qf2 {[%clk 0:01:03]}  Rf8 {[%clk 0:01:27]} 30. Qf4 {[%clk 0:00:51]}  Ng6 {[%clk 0:01:23]} 31. Qxe5 {[%clk 0:00:42]}  Nxe5 {[%clk 0:01:24]} 32. Bf3 {[%clk 0:00:35]}  Rd8 {[%clk 0:01:22]} 33. Rf2 {[%clk 0:00:35]}  g6 {[%clk 0:01:20]} 34. Nf1 {[%clk 0:00:26]}  Nd3 {[%clk 0:01:07]} 35. Rd2 {[%clk 0:00:25]}  Re8 {[%clk 0:01:08]} 36. Ng3 {[%clk 0:00:23]}  h5 {[%clk 0:01:07]} 37. h4 {[%clk 0:00:23]}  Kg7 {[%clk 0:01:02]} 38. b3 {[%clk 0:00:23]}  Kf6 {[%clk 0:01:00]} 39. bxc4 {[%clk 0:00:23]}  bxc4 {[%clk 0:01:01]} 40. Rd1 {[%clk 0:00:22]}  Ke5 {[%clk 0:00:58]} 41. Rb1 {[%clk 0:00:22]}  Bc6 {[%clk 0:00:57]} 42. Rb6 {[%clk 0:00:21]}  Re6 {[%clk 0:00:56]} 43. Ne2 {[%clk 0:00:20]}  Bxe4 {[%clk 0:00:44]} 44. Rb5+ {[%clk 0:00:17]}  Kf6 {[%clk 0:00:41]} 45. Nd4 {[%clk 0:00:17]}  Re5 {[%clk 0:00:31]} 46. Rb6+ {[%clk 0:00:17]}  Kg7 {[%clk 0:00:31]} 47. Bxe4 {[%clk 0:00:17]}  Rxe4 {[%clk 0:00:30]} 48. Rc6 {[%clk 0:00:18]}  Ne5 {[%clk 0:00:30]} 49. g3 {[%clk 0:00:17]}  Re3 {[%clk 0:00:29]} 50. Nb5 {[%clk 0:00:16]}  Ng4+ {[%clk 0:00:29]} 51. Kg2 {[%clk 0:00:16]}  Re2+ {[%clk 0:00:29]} 52. Kf3 {[%clk 0:00:15]}  Rf2+ {[%clk 0:00:29]} 53. Ke4 {[%clk 0:00:16]}  Re2+ {[%clk 0:00:29]} 54. Kd4 {[%clk 0:00:14]}  Rg2 {[%clk 0:00:26]} 55. Rc7 {[%clk 0:00:14]}  Rxg3 {[%clk 0:00:26]} 56. Nd6 {[%clk 0:00:15]}  Rf3 {[%clk 0:00:25]} 57. Kxc4 {[%clk 0:00:14]}  Ne5+ {[%clk 0:00:25]} 58. Kb4 {[%clk 0:00:14]}  Rf4+ {[%clk 0:00:25]} 59. c4 {[%clk 0:00:14]}  Rxh4 {[%clk 0:00:23]} 60. Kb5 {[%clk 0:00:14]}  Nxc4 {[%clk 0:00:22]} 61. Nxc4 {[%clk 0:00:14]}  Rf4 {[%clk 0:00:21]} 62. Nd6 {[%clk 0:00:14]}  h4 {[%clk 0:00:21]} 63. Ne8+ {[%clk 0:00:13]}  Kh6 {[%clk 0:00:21]} 64. Kc5 {[%clk 0:00:12]}  h3 {[%clk 0:00:20]} 65. Kd5 {[%clk 0:00:13]}  h2 {[%clk 0:00:20]} 66. Rc1 {[%clk 0:00:13]}  Rf2 {[%clk 0:00:20]} 67. Rh1 {[%clk 0:00:14]}  Kg5 {[%clk 0:00:19]} 68. Nd6 {[%clk 0:00:14]}  f5 {[%clk 0:00:18]} 69. Kd4 {[%clk 0:00:13]}  Kg4 {[%clk 0:00:18]} 70. Ke3 {[%clk 0:00:13]}  Rg2 {[%clk 0:00:18]} 71. Nf7 {[%clk 0:00:12]}  g5 {[%clk 0:00:18]} 72. Ne5+ {[%clk 0:00:12]}  Kg3 {[%clk 0:00:16]} 73. Nf3 {[%clk 0:00:11]}  f4+ {[%clk 0:00:17]} 74. Ke4 {[%clk 0:00:11]}  g4 {[%clk 0:00:17]} 75. Nd4 {[%clk 0:00:09]}  Rg1 {[%clk 0:00:17]} 76. Rxh2 {[%clk 0:00:09]}  Kxh2 {[%clk 0:00:17]} 77. Kxf4 {[%clk 0:00:10]}  g3 {[%clk 0:00:17]} 78. Nf3+ {[%clk 0:00:10]}  Kg2 {[%clk 0:00:16]} 79. Nxg1 {[%clk 0:00:11]}  Kf2 {[%clk 0:00:13]} 80. Nh3+ {[%clk 0:00:10]}  Kg2 {[%clk 0:00:13]} 81. Kg4 {[%clk 0:00:11]}  Kh2 {[%clk 0:00:13]} 82. Nf4 {[%clk 0:00:11]}  g2 {[%clk 0:00:12]} 83. Nxg2 {[%clk 0:00:10]} 1/2-1/2


[Site "https://www.chess.com"]

[Event "Titled Tuesday Blitz May 23 Late 2023"]
[White "KVAIDAN"]
[Black "Bogaudinov, Rushan"]
[BlackFideId "4129288"]
[WhiteElo "2287"]
[BlackElo "1941"]
[Result "1-0"]
[Round "05"]
[TimeControl "180+2"]
[Date "2023.05.23"]
[WhiteClock "0:01:10"]
[BlackClock "0:00:00"]

1. f4 {[%clk 0:02:58]}  c5 {[%clk 0:02:35]} 2. Nf3 {[%clk 0:02:57]}  Nc6 {[%clk 0:02:34]} 3. e4 {[%clk 0:02:55]}  d5 {[%clk 0:02:29]} 4. exd5 {[%clk 0:02:54]}  Qxd5 {[%clk 0:02:29]} 5. Nc3 {[%clk 0:02:54]}  Qd8 {[%clk 0:02:30]} 6. Bb5 {[%clk 0:02:53]}  Nf6 {[%clk 0:02:23]} 7. d4 {[%clk 0:02:53]}  cxd4 {[%clk 0:02:21]} 8. Nxd4 {[%clk 0:02:51]}  Bd7 {[%clk 0:02:20]} 9. Nxc6 {[%clk 0:02:51]}  bxc6 {[%clk 0:02:17]} 10. Bc4 {[%clk 0:02:50]}  e6 {[%clk 0:02:17]} 11. O-O {[%clk 0:02:50]}  Bc5+ {[%clk 0:02:15]} 12. Kh1 {[%clk 0:02:50]}  O-O {[%clk 0:02:15]} 13. Qe2 {[%clk 0:02:50]}  Qc7 {[%clk 0:02:02]} 14. Be3 {[%clk 0:02:48]}  Bxe3 {[%clk 0:02:01]} 15. Qxe3 {[%clk 0:02:48]}  Nd5 {[%clk 0:02:01]} 16. Qf3 {[%clk 0:02:45]}  Rab8 {[%clk 0:02:00]} 17. b3 {[%clk 0:02:43]}  Nxc3 {[%clk 0:01:45]} 18. Qxc3 {[%clk 0:02:42]}  c5 {[%clk 0:01:46]} 19. Rae1 {[%clk 0:02:36]}  g6 {[%clk 0:01:38]} 20. Re3 {[%clk 0:02:33]}  Rfd8 {[%clk 0:01:33]} 21. Qf6 {[%clk 0:02:31]}  Bb5 {[%clk 0:01:28]} 22. Bxb5 {[%clk 0:02:11]}  Rxb5 {[%clk 0:01:29]} 23. f5 {[%clk 0:02:11]}  Rb6 {[%clk 0:00:52]} 24. fxg6 {[%clk 0:01:55]}  fxg6 {[%clk 0:00:44]} 25. Rxe6 {[%clk 0:01:53]}  Rxe6 {[%clk 0:00:40]} 26. Qxe6+ {[%clk 0:01:51]}  Kg7 {[%clk 0:00:39]} 27. h3 {[%clk 0:01:50]}  Rf8 {[%clk 0:00:22]} 28. Rd1 {[%clk 0:01:48]}  Rf7 {[%clk 0:00:20]} 29. a4 {[%clk 0:01:41]}  Re7 {[%clk 0:00:18]} 30. Qc4 {[%clk 0:01:39]}  Qe5 {[%clk 0:00:16]} 31. a5 {[%clk 0:01:37]}  h5 {[%clk 0:00:15]} 32. a6 {[%clk 0:01:36]}  Re6 {[%clk 0:00:14]} 33. Rd7+ {[%clk 0:01:35]}  Kh6 {[%clk 0:00:14]} 34. Qf1 {[%clk 0:01:31]}  Rf6 {[%clk 0:00:13]} 35. Qc1+ {[%clk 0:01:31]}  g5 {[%clk 0:00:13]} 36. c4 {[%clk 0:01:28]}  Qe2 {[%clk 0:00:11]} 37. Rd1 {[%clk 0:01:24]}  h4 {[%clk 0:00:11]} 38. Re1 {[%clk 0:01:22]}  Qa2 {[%clk 0:00:09]} 39. Re5 {[%clk 0:01:21]}  Rg6 {[%clk 0:00:09]} 40. Rxc5 {[%clk 0:01:18]}  Qxa6 {[%clk 0:00:09]} 41. b4 {[%clk 0:01:18]}  Qd6 {[%clk 0:00:07]} 42. Rd5 {[%clk 0:01:17]}  Qg3 {[%clk 0:00:07]} 43. c5 {[%clk 0:01:16]}  Re6 {[%clk 0:00:07]} 44. Rd1 {[%clk 0:01:16]}  a6 {[%clk 0:00:07]} 45. c6 {[%clk 0:01:15]}  Qc7 {[%clk 0:00:07]} 46. Rd5 {[%clk 0:01:14]}  Rg6 {[%clk 0:00:06]} 47. Rc5 {[%clk 0:01:12]}  Rg7 {[%clk 0:00:05]} 48. Rc4 {[%clk 0:01:13]}  Rg6 {[%clk 0:00:05]} 49. Rxh4+ {[%clk 0:01:12]}  Kg7 {[%clk 0:00:05]} 50. Rc4 {[%clk 0:01:12]}  Kh6 {[%clk 0:00:05]} 51. Qc2 {[%clk 0:01:12]}  Kg7 {[%clk 0:00:04]} 52. Qc3+ {[%clk 0:01:10]}  Kh6 {[%clk 0:00:05]} 53. Qh8+ {[%clk 0:01:10]}  Qh7 {[%clk 0:00:04]} 54. Qxh7+ {[%clk 0:01:10]}  Kxh7 {[%clk 0:00:00]} 55. c7 {[%clk 0:01:10]} 1-0


[Site "https://www.chess.com"]